[Event "US Masters 2022"]
[Site "Charlotte"]
[Date "2022.11.27"]
[Round "7.6"]
[White "Hambleton, Aman"]
[Black "Amburgy, Ryan"]
[Result "1-0"]
[ECO "A45"]
[WhiteElo "2437"]
[BlackElo "2175"]
[Annotator "TA"]
[PlyCount "197"]
[EventDate "2022.11.23"]
[EventType "swiss"]
[EventCountry "USA"]
[SourceTitle "playchess.com"]
[Source "ChessBase"]
[SourceQuality "1"]
[TimeControl "5400+30"]

{[%evp 9,196,0,0,6,13,-7,-7,-7,0,0,0,0,0,0,0,0,6,9,11,0,27,0,35,35,29,12,25,0,64,54,81,24,85,0,20,15,17,19,13,14,31,40,55,44,56,26,27,27,52,59,79,85,87,84,85,87,86,85,83,85,81,87,98,98,103,108,147,95,111,103,168,153,145,147,207,206,206,206,292,274,270,264,298,312,515,431,654,632,477,613,620,600,583,497,452,431,5722,5412,29961,29961,29962,29961,29960,29959,29978,29979,29979,29980,29968,29969,29969,29970,29970,29972,29972,29971,29970,29972,29972,29973,29971,29973,29973,29974,29978,29979,29980,29980,29983,29979,29979,29980,29980,29974,29972,29972,29972,29973,29973,29975,29984,29977,29976,29977,29976,29975,29977,29978,29978,29979,29980,29980,29980,29980,29980,29981,29984,29982,29982,29977,29983,29984,29984,29985,29985,29986,29989,29990,29990,29990,29991,29990,29991,29992,29992,4145,29993,29994,29994,29995,29995,4149,29996,29995,29997,29998,29998,29999,29999]} 1. d4 {[%emt 0:00:05]} Nf6 {[%emt 0:00:06]} 2. Bf4 {[%emt 0:00:14]} c5 {[%emt 0:00:09]} 3. e3 {[%emt 0:00:09]} cxd4 {[%emt 0:00:06]} 4. exd4 {[%emt 0:00:12]} Qb6 {[%emt 0:00:09]} 5. Nc3 {[%emt 0:08:45]} a6 {[%emt 0:00:14]} 6. a3 {[%emt 0:02:03] A45: Trompowsky Attack.} d5 {[%emt 0:00:19]} 7. Be2 {[%emt 0:33:40] Against Bg4} Bf5 {[%emt 0:02:11]} (7... Qxb2 $2 8. Na4 $18) 8. Nf3 {[%emt 0:01:04] The position is equal.} Nbd7 {[%emt 0:01:43]} (8... Qxb2 $2 9. Na4 Bxc2 10. Nxb2 $18) 9. Rb1 {[%emt 0:01:04]} e6 {[%emt 0:03:29] [#]} 10. Nh4 $146 {[%emt 0:02:20]} ({Predecessor:} 10. O-O Rc8 11. Re1 Be7 12. h3 Ne4 13. Bd3 Qc6 14. Bxe4 Bxe4 15. Nxe4 dxe4 16. Ne5 Nxe5 17. dxe5 {½-½ (60) Srinath,R (2278)-Gajic,M (2362) Novi Sad 2018}) 10... Bg6 {[%emt 0:00:31]} 11. O-O {[%emt 0:06:02]} Rc8 {[%emt 0:10:10]} 12. g3 {[%emt 0:03:28]} Qc6 {[%emt 0:07:30]} 13. Nxg6 {[%emt 0:02:54]} hxg6 {[%emt 0:00:06]} 14. Bd3 {[%emt 0:00:49]} Be7 {[%emt 0:07:55]} (14... Bd6 $5 {[%cal Rd6f4]}) 15. Ne2 {[%emt 0:09:50]} Nb6 {[%emt 0:03:40]} 16. Kg2 {[%emt 0:11:39]} Nc4 {[%emt 0:04:22][%cal Og6g5]} 17. Ng1 {[%emt 0:03:45] Inhibits g5.} Ne4 {[%emt 0:06:41]} 18. c3 {[%emt 0:10:25]} (18. Qe2 {keeps more tension.} g5 19. Bc1 Kf8 20. c3) 18... Bf6 {[%emt 0:11:46]} ({Black should try} 18... e5 $11 19. Bc1 exd4 20. cxd4 O-O) 19. Qe2 $14 {[%emt 0:00:31]} O-O {[%emt 0:02:41]} 20. Rbe1 {[%emt 0:00:53]} (20. Rfe1 $1 $16) 20... Rfe8 {[%emt 0:01:14]} (20... g5 $11 {keeps the balance.} 21. Bc1 Rfe8) 21. Nf3 {[%emt 0:00:32]} (21. f3 $16 Ned6 22. Bxd6 Qxd6 23. f4) 21... g5 $11 {[%emt 0:03:03]} 22. Bc1 {[%emt 0:00:32][%cal Rd3e4]} g4 {[%emt 0:00:16]} 23. Ng1 {[%emt 0:00:31]} e5 {[%emt 0:00:38]} 24. Bxc4 {[%emt 0:00:29]} Qxc4 {[%emt 0:01:28]} (24... exd4 {is interesting.} 25. Bd3 Nxg3 26. hxg3 Rxe2 27. Nxe2 dxc3 28. Nxc3 Bxc3 29. bxc3 d4+) 25. dxe5 {[%emt 0:00:31] Strongly threatening Qxc4.} Qxe2 {[%emt 0:00:44]} 26. Rxe2 {[%emt 0:00:15]} Rxe5 {[%emt 0:00:14]} 27. Rd1 {[%emt 0:00:41]} Rd8 {[%emt 0:01:05]} 28. Be3 {[%emt 0:00:33]} (28. Rde1 {simplifies} Ree8 29. h3 gxh3+ 30. Nxh3 Nd6 31. Rxe8+ Nxe8 32. Nf4) 28... Re6 {[%emt 0:00:21]} 29. h3 {[%emt 0:00:28]} Bxc3 {[%emt 0:02:48]} 30. bxc3 {[%emt 0:00:29] And now Rb2 would win.} Nxc3 {[%emt 0:00:02]} 31. Bg5 $1 {[%emt 0:00:33]} gxh3+ {[%emt 0:00:57]} 32. Kxh3 {[%emt 0:00:23]} Rxe2 {[%emt 0:00:15]} 33. Nxe2 {[%emt 0:00:28]} Nxd1 {[%emt 0:00:03]} 34. Bxd8 {[%emt 0:00:05] Black must now prevent Bb6.} Nxf2+ {[%emt 0:00:04]} 35. Kg2 {[%emt 0:00:06]} Ne4 {[%emt 0:00:26]} 36. Nf4 $1 {[%emt 0:01:09]} Nc3 {[%emt 0:01:30]} 37. Ba5 {[%emt 0:00:37]} Nb1 {[%emt 0:02:32]} 38. Bb4 {[%emt 0:00:42]} (38. Nxd5 $6 Nxa3 39. Kf3 f6 $14) ({Better is} 38. a4) 38... a5 $16 {[%emt 0:00:03]} 39. Bc5 {[%emt 0:00:30][%cal Bb4c5,Bc5d4,Bd4b2,Bb2e5][%mdl 32]} Nc3 {[%emt 0:00:15]} (39... d4 $16 {keeps fighting.}) 40. Bd4 $1 $18 {[%emt 0:00:28]} Nb5 {[%emt 0:00:25] [#]} 41. Bb2 {[%emt 0:00:08] White is more active.} Nc7 {[%emt 0:00:31]} (41... d4 $16 {might work better.} 42. Kf3 Kh7) 42. Be5 {[%emt 0:00:34]} Nb5 {[%emt 0:00:48]} 43. a4 {[%emt 0:00:47]} (43. Nxd5 $6 Nxa3 44. Nb6 Nb5 $14) 43... Na7 {[%emt 0:00:25]} (43... Na3 $142 44. Bc7 d4 45. Bxa5 b5) 44. Bd4 {[%emt 0:00:27]} (44. Nxd5 $6 b5 45. axb5 Nxb5 $16) 44... Nc6 {[%emt 0:00:12] [#]} 45. Bb6 {[%emt 0:00:14]} d4 {[%emt 0:00:03]} 46. Nd3 {[%emt 0:00:26]} f5 $2 {[%emt 0:00:52]} (46... Nb4 {was called for.}) 47. Nc5 {[%emt 0:00:24]} g5 {[%emt 0:00:03]} (47... d3 $142 48. Kf2 (48. Nxb7 $2 d2 $19) 48... Kf7 49. Nxb7 Ne5 50. Bxa5 Ke6) 48. Nxb7 {[%emt 0:00:28]} d3 {[%emt 0:00:01] Hoping for ...d2.} 49. Kf2 {[%emt 0:01:04]} (49. Nxa5 $2 d2 50. Nxc6 d1=Q $19) (49. Bxa5 $2 Nxa5 50. Kf3 Nxb7 $19) 49... f4 {[%emt 0:00:16]} 50. gxf4 {[%emt 0:00:31]} (50. Nxa5 fxg3+ 51. Ke1 (51. Kxg3 $2 d2 $19) 51... Nxa5 52. Bxa5 Kf7 $18) 50... gxf4 {[%emt 0:00:00]} 51. Bxa5 {[%emt 0:00:13]} ({Weaker is} 51. Nxa5 d2 52. Ke2 (52. Nxc6 $2 d1=Q $19) 52... Nxa5 $11) 51... Kf7 {[%emt 0:00:15]} 52. Bb6 {[%emt 0:00:42] Threatens to win with a5.} ({Don't play} 52. Bd2 Ke6 53. Nc5+ Kd5 54. Nxd3 Kc4 $18) 52... Ke6 {[%emt 0:00:20]} (52... Nb4 $142 53. Nc5 Ke7) 53. a5 {[%emt 0:00:31][%cal Ba4a5,Ba5a6][%mdl 32] a6 would kill now.} Kd7 {[%emt 0:00:01]} 54. a6 {[%emt 0:00:27]} Kc8 {[%emt 0:00:08]} 55. Nd6+ {[%emt 0:00:20]} Kb8 {[%emt 0:00:04]} 56. Nb5 {[%emt 0:00:10]} Ka8 {[%emt 0:01:06]} 57. Ke1 {[%emt 0:00:47]} f3 {[%emt 0:00:14]} 58. Kd2 {[%emt 0:00:47]} Kb8 {[%emt 0:00:03]} 59. Bc5 {[%emt 0:00:32]} ({Worse is} 59. Kxd3 Nb4+ 60. Kc4 Nxa6 $11) 59... Kc8 {[%emt 0:01:08]} 60. Kxd3 {[%emt 0:00:29]} Kd7 {[%emt 0:01:39]} 61. a7 {[%emt 0:00:28]} Nxa7 {[%emt 0:00:01]} 62. Bxa7 {[%emt 0:00:15]} Ke7 {[%emt 0:00:14]} 63. Ke4 {[%emt 0:00:12]} Ke6 {[%emt 0:00:06]} 64. Bf2 {[%emt 0:00:18]} Kd7 {[%emt 0:00:08]} 65. Nd4 {[%emt 0:00:13]} Kd6 {[%emt 0:00:02]} 66. Nxf3 {[%emt 0:00:19]} Ke6 {[%emt 0:00:03]} 67. Bg3 {[%emt 0:01:03]} Kf6 {[%emt 0:00:03]} 68. Be5+ {[%emt 0:00:14]} Kg6 {[%emt 0:00:07]} 69. Kf4 {[%emt 0:00:40]} Kf7 {[%emt 0:00:03]} 70. Nd4 {[%emt 0:00:16]} Ke7 {[%emt 0:00:04]} 71. Kf5 {[%emt 0:00:38]} Kd7 {[%emt 0:00:04]} 72. Kf6 {[%emt 0:00:27]} Kc8 {[%emt 0:00:02]} 73. Ke6 {[%emt 0:00:58]} Kb7 {[%emt 0:00:02]} 74. Kd5 {[%emt 0:00:32]} Kc8 {[%emt 0:00:20]} 75. Kd6 {[%emt 0:00:39]} Kb7 {[%emt 0:00:03]} 76. Bf4 {[%emt 0:00:20]} Kb6 {[%emt 0:00:08]} 77. Bd2 {[%emt 0:00:07]} Kb7 {[%emt 0:00:08]} 78. Ne6 {[%emt 0:00:20]} Kb6 {[%emt 0:00:04]} 79. Nc7 {[%emt 0:00:07]} Ka7 {[%emt 0:00:10]} 80. Be3+ {[%emt 0:00:13]} Kb7 {[%emt 0:00:08]} 81. Bd4 {[%emt 0:00:08]} Kc8 {[%emt 0:00:08]} 82. Kc6 {[%emt 0:00:16]} Kd8 {[%emt 0:00:05]} 83. Bc5 {[%emt 0:00:20]} Kc8 {[%emt 0:00:02]} 84. Ba7 {[%emt 0:00:08]} Kd8 {[%emt 0:00:03]} 85. Nd5 {[%emt 0:00:08]} Ke8 {[%emt 0:00:07]} 86. Kd6 {[%emt 0:00:06]} Kf7 {[%emt 0:00:02]} 87. Ne7 {[%emt 0:00:08]} Ke8 {[%emt 0:00:12]} 88. Ke6 {[%emt 0:00:06]} Kd8 {[%emt 0:00:02]} 89. Bb6+ {[%emt 0:00:07]} Ke8 {[%emt 0:00:01]} 90. Bc7 {[%emt 0:00:11]} Kf8 {[%emt 0:00:02]} 91. Nf5 {[%emt 0:00:09]} Ke8 {[%emt 0:00:05]} 92. Ng7+ {[%emt 0:00:05]} Kf8 {[%emt 0:00:02]} 93. Kf6 {[%emt 0:00:08]} Kg8 {[%emt 0:00:02]} 94. Kg6 {[%emt 0:00:08]} Kh8 {[%emt 0:00:10]} 95. Bd6 {[%emt 0:00:09]} Kg8 {[%emt 0:00:03]} 96. Be7 {[%emt 0:00:06] White mates.} Kh8 {[%emt 0:00:02]} 97. Nf5 {[%emt 0:00:08]} Kg8 {[%emt 0:00:05]} 98. Nh6+ {[%emt 0:00:06]} Kh8 {[%emt 0:00:01]} 99. Bf6# {[%emt 0:00:08] Weighted Error Value: White=0.08 (flawless) /Black=0.33} 1-0

[Event "US Masters 2022"]
[Site "Charlotte"]
[Date "2022.11.27"]
[Round "7.7"]
[White "Yoo, Christopher Woojin"]
[Black "Bora, Safal"]
[Result "1-0"]
[ECO "C01"]
[WhiteElo "2573"]
[BlackElo "2446"]
[Annotator "TA"]
[PlyCount "139"]
[EventDate "2022.11.23"]
[EventType "swiss"]
[EventCountry "USA"]
[SourceTitle "playchess.com"]
[Source "ChessBase"]
[SourceQuality "1"]
[TimeControl "5400+30"]

{[%evp 15,139,16,12,13,0,0,6,0,10,6,22,28,18,27,6,8,14,8,47,45,68,57,73,85,86,77,77,71,67,45,43,40,47,44,53,49,52,50,50,35,133,72,87,47,44,52,47,63,43,46,39,47,47,44,45,45,43,38,39,20,32,10,29,5,8,6,8,7,6,12,8,0,8,0,18,21,16,21,35,37,37,31,31,22,22,16,22,16,26,25,35,28,35,43,35,27,87,73,93,93,1074,584,2605,2605,29954,5225,5257,1000,29966,29966,29976,29977,29977,29978,29978,29979,29979,29980,29979,29980,29980,29978,29980,29981,29987,29987]} 1. e4 {[%emt 0:01:15]} e6 {[%emt 0:00:04]} 2. d4 {[%emt 0:00:14]} d5 {[%emt 0:00:04]} 3. exd5 {[%emt 0:00:18]} exd5 {[%emt 0:00:05]} 4. Nf3 {[%emt 0:00:02]} Nf6 {[%emt 0:00:58]} 5. Bd3 {[%emt 0:00:09]} Bd6 {[%emt 0:00:27]} 6. O-O {[%emt 0:00:06]} O-O {[%emt 0:00:15]} 7. Bg5 {[%emt 0:00:04]} Bg4 {[%emt 0:09:53]} 8. Nbd2 {[%emt 0:00:36][%cal Bb1d2,Bd2c4,Bc4e5][%mdl 32]} Nbd7 {[%emt 0:00:25]} 9. h3 {[%emt 0:01:36] C01: French: Exchange Variation.} Bh5 {[%emt 0:00:58]} 10. c4 {[%emt 0:00:30]} dxc4 {[%emt 0:06:30]} 11. Nxc4 {[%emt 0:00:50] The position is equal.} Nb6 {[%emt 0:01:02]} 12. Nce5 {[%emt 0:05:07] [#]} Be7 $146 {[%emt 0:04:54]} ({Predecessor:} 12... c6 13. g4 Bg6 14. Nxg6 hxg6 15. Qb3 a5 16. a4 Nbd5 17. Rfe1 Qc7 18. Re2 Nd7 {½-½ (37) Wakeham,M (2128)-Schott,R (2176) ICCF email 2018}) 13. Re1 {[%emt 0:03:44]} c6 {[%emt 0:07:29]} 14. Qb3 {[%emt 0:04:59]} Bxf3 {[%emt 0:09:28]} 15. Nxf3 {[%emt 0:01:45]} (15. gxf3 Nfd5 16. Be3 Bb4 $17) 15... Nfd5 {[%emt 0:01:28] Against a4} (15... Qc7 {feels hotter.} 16. Ne5 Nfd5 17. Bd2 Bd6) 16. Bd2 {[%emt 0:02:59]} Bf6 {[%emt 0:01:41]} 17. Be4 {[%emt 0:05:07]} Qd6 {[%emt 0:08:13]} 18. Rac1 {[%emt 0:04:33] White is more active.} Rfe8 {[%emt 0:00:46]} 19. a4 $1 {[%emt 0:02:03] aiming for a5.} Rab8 {[%emt 0:06:37]} 20. a5 {[%emt 0:02:30] Against a6} Nd7 {[%emt 0:00:08]} 21. a6 {[%emt 0:02:30]} (21. Bxd5 {simplifies} Rxe1+ 22. Bxe1 Qxd5 23. Qxd5 cxd5 24. Rc7) 21... bxa6 {[%emt 0:03:52]} 22. Qd3 {[%emt 0:05:22]} g6 {[%emt 0:01:19]} (22... Rxb2 $2 23. Bxh7+ (23. Qxa6 Re6 $14) 23... Kf8 24. Rxe8+ (24. Qxa6 Ne7 $16) 24... Kxe8 25. Qxa6 $18) 23. Qxa6 {[%emt 0:00:36]} Rb6 {[%emt 0:02:24]} 24. Qa4 {[%emt 0:03:46]} Kg7 {[%emt 0:01:20]} 25. Rc2 {[%emt 0:02:54]} Reb8 {[%emt 0:04:08]} 26. Rec1 {[%emt 0:02:13][%cal Rc2c6]} Qe6 {[%emt 0:05:00]} 27. Bd3 {[%emt 0:01:02][%cal Rc2c6]} (27. Rxc6 $2 Qxe4 28. Rxb6 N7xb6 $19) 27... Rxb2 {[%emt 0:06:08] [#]} (27... Nb4 $14 28. Bxb4 Rxb4 29. Qxa7 (29. Qxc6 Qxc6 30. Rxc6 Bxd4 $11) 29... R8b7) 28. Rxc6 {[%emt 0:47:40]} (28. Qxc6 $6 Qxc6 29. Rxc6 Rxd2 30. Nxd2 Nb4 $11) (28. Re1 $142 $1 {[%cal Re1e6]} Rb1 29. Bc1 (29. Qxc6 Rxe1+ 30. Bxe1 Nf4 $11)) 28... Qe8 $16 {[%emt 0:00:19][%cal Ob2d2]} 29. Re1 {[%emt 0:00:00]} (29. Qxa7 $2 Ra8 $19) 29... N7b6 $1 {[%emt 0:03:33]} 30. Rxe8 {[%emt 0:00:00] The board is on fire.} Nxa4 {[%emt 0:00:02] Pair of Knights!} 31. Rxb8 {[%emt 0:00:00]} Rxb8 {[%emt 0:16:30]} 32. Ra6 {[%emt 0:00:00]} Nb4 $1 {[%emt 0:00:00]} 33. Rxa4 {[%emt 0:00:00]} Nxd3 {[%emt 0:00:00]} 34. Kf1 {[%emt 0:00:00]} (34. Rxa7 Rb1+ 35. Kh2 Nxf2 $11) 34... Rb7 {[%emt 0:00:00]} 35. Ke2 {[%emt 0:00:00]} Nb2 {[%emt 0:00:00]} 36. Ra6 {[%emt 0:00:00]} Nc4 {[%emt 0:00:00]} 37. Bc3 {[%emt 0:00:00]} Nb6 {[%emt 0:00:00]} ({Weaker is} 37... Rb3 38. Kd3 Rb6 39. Rxa7 $16) 38. g4 {[%emt 0:00:00]} Bd8 {[%emt 0:00:00]} 39. g5 {[%emt 0:00:00]} Nd5 {[%emt 0:00:00]} 40. Bd2 {[%emt 0:00:00]} Bb6 {[%emt 0:00:00]} 41. Kd3 {[%emt 0:00:00]} f6 {[%emt 0:00:00]} 42. h4 {[%emt 0:00:00]} Rd7 {[%emt 0:00:00]} 43. Kc4 {[%emt 0:00:00]} Ne7 {[%emt 0:00:00]} 44. Ra1 {[%emt 0:00:00]} fxg5 {[%emt 0:00:00]} 45. hxg5 {[%emt 0:00:00]} Nf5 {[%emt 0:00:00][%cal Rf5d4]} 46. Bf4 {[%emt 0:00:00]} h6 {[%emt 0:00:58]} 47. Be5+ {[%emt 0:00:00]} Kf8 {[%emt 0:00:01]} 48. gxh6 {[%emt 0:00:00]} Nxh6 {[%emt 0:00:05]} 49. Rg1 {[%emt 0:00:00]} Nf7 {[%emt 0:00:55]} 50. Bf4 {[%emt 0:00:00]} Kg7 {[%emt 0:00:29]} 51. Be3 {[%emt 0:00:00]} Rd6 {[%emt 0:01:15]} 52. Nd2 {[%emt 0:00:00]} Rd7 {[%emt 0:00:13]} 53. Ne4 {[%emt 0:00:00]} Nd6+ {[%emt 0:00:28]} 54. Nxd6 {[%emt 0:00:00]} Rxd6 $14 {[%emt 0:00:02][%mdl 4096] Endgame KRB-KRB} 55. d5 {[%emt 0:00:00][%cal Bd4d5,Bd5d6,Bd6d7][%mdl 32]} Kf6 {[%emt 0:00:25]} (55... Kf7 $11 {remains equal.}) 56. Re1 {[%emt 0:00:00] Strongly threatening Bc5.} Kf5 {[%emt 0:03:55]} 57. Bd4 {[%emt 0:01:59]} Bxd4 $4 {[%emt 0:03:31][%mdl 8192] This move loses the game for Black.} (57... Rd8 $16) 58. Kxd4 $16 {[%emt 0:00:12] Kc5 is the strong threat. KR-KR} Rb6 {[%emt 0:00:30] [#]} 59. Re2 $1 {[%emt 0:00:16] Intending Kc5 and mate.} Rb1 {[%emt 0:00:40]} 60. d6 {[%emt 0:00:23] White threatens Kd5 and mate.} ({Less strong is} 60. Re5+ Kf6 61. Re3 (61. Re6+ Kf7 $14) 61... Rf1 $16) 60... Rd1+ {[%emt 0:00:22]} 61. Kc5 {[%emt 0:00:03] Black must now prevent Kc6.} a5 {[%emt 0:00:06]} 62. Kc6 {[%emt 0:00:07] White mates.} a4 {[%emt 0:01:02]} 63. d7 {[%emt 0:00:40]} a3 {[%emt 0:00:27]} 64. Kc7 {[%emt 0:00:08]} Rc1+ {[%emt 0:00:05]} 65. Kd6 {[%emt 0:00:14]} Rd1+ {[%emt 0:00:53]} 66. Ke7 {[%emt 0:00:07]} a2 {[%emt 0:00:26]} 67. Rxa2 {[%emt 0:00:03]} (67. d8=B {leads to mate.} a1=Q 68. Bc7 Qg7+ 69. Ke8 Rd7 70. Re5+ Kf6 71. Bd8+ Kxe5 72. f4+ Kd5 73. Bh4 Qf7#) 67... Re1+ {[%emt 0:00:02]} 68. Kd8 {[%emt 0:00:22]} Ke6 {[%emt 0:00:11]} 69. Ra6+ {[%emt 0:00:03]} Kf7 {[%emt 0:00:37]} 70. Kc7 {[%emt 0:00:06] Weighted Error Value: White=0.07 (flawless) /Black=0.23 (precise)} 1-0

[Event "US Masters 2022"]
[Site "Charlotte"]
[Date "2022.11.27"]
[Round "7.8"]
[White "Grinberg, Eyal"]
[Black "Cordova, Emilio"]
[Result "0-1"]
[ECO "C07"]
[WhiteElo "2491"]
[BlackElo "2561"]
[Annotator "TA"]
[PlyCount "128"]
[EventDate "2022.11.23"]
[EventType "swiss"]
[EventCountry "USA"]
[SourceTitle "playchess.com"]
[Source "ChessBase"]
[SourceQuality "1"]
[TimeControl "5400+30"]

{[%evp 12,128,7,12,38,15,20,11,17,14,23,0,3,-1,0,0,0,-7,0,-4,0,0,0,0,0,0,0,-30,-5,-101,-101,-122,-131,-135,-60,-106,-78,-83,-65,-58,-42,-98,-109,-105,-29,-98,0,-6,-4,-103,-58,-59,-37,-36,-15,-41,-41,-28,-44,-49,-6,-8,0,-48,-69,-42,-11,-76,-25,-26,-28,-152,-57,-57,-57,-66,-36,-30,-30,-29,-25,-48,-48,-83,-72,-243,-242,-241,-234,-332,-143,-144,-63,-675,-667,-29968,-29969,-29969,-29970,-29970,-29971,-29975,-29976,-29977,-29978,-29977,-29978,-29979,-29980,-29980,-29981,-29981,-29981,-29982,-29980,-29980,-29980,-29980,-29981]} 1. e4 {[%emt 0:13:11]} e6 {[%emt 0:02:41]} 2. d4 {[%emt 0:00:10]} d5 {[%emt 0:00:06]} 3. Nd2 {[%emt 0:00:04]} c5 {[%emt 0:01:08]} 4. exd5 {[%emt 0:00:05]} Qxd5 {[%emt 0:00:14]} 5. dxc5 {[%emt 0:01:32]} Bxc5 {[%emt 0:01:06]} 6. Ngf3 {[%emt 0:00:09]} Nf6 {[%emt 0:00:24]} 7. Bc4 {[%emt 0:00:47]} Qd7 {[%emt 0:00:41] C07: French Tarrasch: 3...c5, 4 Ngf3 and 4 exd5 Qxd5.} 8. O-O {[%emt 0:00:51]} a6 {[%emt 0:01:46]} 9. a4 {[%emt 0:01:57]} Qc7 {[%emt 0:01:54] The position is equal.} 10. Qe2 {[%emt 0:00:30]} Nc6 {[%emt 0:08:16]} (10... Bd7 {is more complex.} 11. b3 Bc6 12. Bb2 Nbd7) 11. Nb3 {[%emt 0:10:00]} Bd6 {[%emt 0:00:33]} 12. h3 {[%emt 0:02:53] [#]} b6 $146 {[%emt 0:02:34]} ({Predecessor:} 12... O-O 13. Rd1 Nb4 14. c3 Nbd5 15. Rd4 h6 16. a5 Bd7 17. Bd3 Bc6 18. Rc4 e5 {0-1 (40) Zufic,M (2462)-Livaic,L (2428) Mali Losinj 2016}) 13. Re1 {[%emt 0:06:17]} O-O {[%emt 0:02:58]} 14. Bg5 {[%emt 0:01:06]} Bb7 {[%emt 0:07:25]} 15. Rad1 {[%emt 0:01:53]} Rfe8 {[%emt 0:08:28]} 16. c3 {[%emt 0:04:13]} h6 {[%emt 0:10:42]} 17. Bxf6 {[%emt 0:03:51]} gxf6 {[%emt 0:00:15]} 18. Nbd4 {[%emt 0:04:01]} f5 {[%emt 0:11:58]} 19. Bd3 {[%emt 0:09:59]} Bf4 {[%emt 0:08:20]} 20. Nc2 {[%emt 0:07:30]} (20. Bc2 $11) 20... Kh8 $1 $17 {[%emt 0:00:58]} 21. Kh1 {[%emt 0:07:03]} Rg8 $1 {[%emt 0:00:20][%cal Oc6e5]} 22. Rg1 {[%emt 0:00:28]} Ne7 {[%emt 0:03:29]} (22... Ne5 $17 {[%cal Og8g2] And now ...Rxg2! would win.} 23. Nce1 Rad8) 23. Nce1 {[%emt 0:02:34]} (23. Nb4 $15) 23... Rg6 {[%emt 0:02:33]} 24. Bc4 {[%emt 0:03:45]} Ng8 {[%emt 0:10:44][%cal Be7g8,Bg8f6,Bf6e4][%mdl 32]} 25. Rd4 {[%emt 0:04:58]} Nf6 $1 {[%emt 0:00:13]} 26. Nd3 {[%emt 0:01:40] Inhibits e5.} (26. Bd3 $15) 26... Ne4 $1 {[%emt 0:01:13][%cal Of4g3] aiming for ...Bg3!} 27. Nxf4 {[%emt 0:05:32]} Qxf4 {[%emt 0:00:05]} 28. Bd3 {[%emt 0:00:25]} (28. Rd7 $11 Bc6 29. Rd4 (29. Rxf7 $2 Rag8 $19)) 28... Bc6 {[%emt 0:05:22]} ({Better is} 28... Rag8 $17 {...e5 is the strong threat.} 29. Bxe4 fxe4) 29. Bxe4 {[%emt 0:02:26]} fxe4 {[%emt 0:00:05]} 30. Nh2 {[%emt 0:03:10]} (30. Nd2 $1 $11) 30... e5 {[%emt 0:00:28]} 31. Rb4 {[%emt 0:00:39]} b5 {[%emt 0:03:58]} (31... Rag8 $5 {[%cal Ra6a5]} 32. Nf1 (32. Rxb6 e3 $17) 32... Bb7 $17) 32. axb5 {[%emt 0:00:10]} axb5 {[%emt 0:00:04]} 33. Ng4 {[%emt 0:01:16]} (33. c4 {looks sharper.} e3 34. f3 Rag8 35. Rb3) 33... Rag8 {[%emt 0:01:52][%cal Rg6g4]} (33... Rf8 {seems wilder.} 34. Ne3 f5 35. Rxb5 Bxb5 36. Qxb5 Qxf2 37. Qxe5+ Kh7) 34. Qe3 {[%emt 0:00:26]} Re6 {[%emt 0:01:05]} 35. c4 {[%emt 0:00:47]} bxc4 {[%emt 0:01:29]} (35... f5 $5 {[%cal Rf5g4]} 36. cxb5 Bb7 $11) 36. Rxc4 {[%emt 0:00:05]} f5 {[%emt 0:00:12]} 37. Nh2 {[%emt 0:00:45]} (37. Rgc1 $11) 37... Qxe3 $15 {[%emt 0:00:28]} 38. fxe3 {[%emt 0:00:01]} Bb5 {[%emt 0:00:31]} 39. Rc2 {[%emt 0:00:55]} (39. Rc7 $1 $11) 39... Bd3 {[%emt 0:01:34]} (39... Kg7 $17) 40. Rf2 $11 {[%emt 0:00:01]} Rf8 {[%emt 0:00:09]} 41. Nf1 {[%emt 0:00:43]} (41. g3 $1 $11 {remains equal.}) 41... Kg7 {[%emt 0:00:09] Black has more active pieces. The white rooks are badly placed.} (41... f4 $17 42. Nh2 h5) 42. Ng3 $15 {[%emt 0:00:53]} Kg6 $36 {[%emt 0:00:05][%mdl 2048] Black has some pressure.} (42... f4 43. exf4 h5 44. f5 $11 (44. Nxh5+ Kh6 $17)) 43. Ne2 {[%emt 0:00:57]} Ref6 {[%emt 0:01:13]} 44. g3 {[%emt 0:00:38] Inhibits f4.} h5 {[%emt 0:00:18]} 45. Nc3 {[%emt 0:00:34]} Rd8 {[%emt 0:01:05]} 46. Ra1 {[%emt 0:00:06]} Ra6 {[%emt 0:00:56]} 47. Rxa6+ {[%emt 0:01:18]} Bxa6 {[%emt 0:00:04][%mdl 4096] Endgame KRB-KRN} 48. Na4 $2 {[%emt 0:00:36] [#]} (48. Kg1 $17 {is a better defense.}) 48... h4 $1 $19 {[%emt 0:00:36]} 49. gxh4 {[%emt 0:00:37][%cal Oh4h5] [#]} f4 $1 {[%emt 0:00:06]} 50. Nc5 {[%emt 0:00:20]} (50. Nc3 {was worth a try.}) 50... Rd1+ {[%emt 0:00:16]} (50... Bb5 $19 {has better winning chances.} 51. Rg2+ (51. exf4 $2 {perishes.} e3 $19) 51... Kh6 52. Nxe4 (52. exf4 $2 e3 $19) 52... fxe3) 51. Kh2 $17 {[%emt 0:00:06]} Bf1 {[%emt 0:01:16]} (51... fxe3 $17 52. Rg2+ Kf7 53. Nxa6 Rd2) 52. Nxe4 {[%emt 0:00:37][%mdl 8192]} (52. h5+ $15 Kxh5 53. Nxe4 fxe3 54. Rf5+ Kh6 55. Ng3) 52... fxe3 $19 {[%emt 0:00:04]} 53. Nc3 {[%emt 0:00:30]} Rd2 {[%emt 0:01:28] Black mates.} ({Weaker is} 53... exf2 54. Nxd1 Bxh3 55. Nxf2 $16) 54. Rxd2 {[%emt 0:00:47]} exd2 {[%emt 0:00:03] KB-KN} 55. Kg3 {[%emt 0:00:13] [#]} Be2 $1 {[%emt 0:00:04][%mdl 576]} 56. h5+ {[%emt 0:00:50]} (56. Kf2 d1=Q) 56... Bxh5 {[%emt 0:00:11]} 57. b4 {[%emt 0:00:34]} d1=Q {[%emt 0:00:14]} 58. Nxd1 {[%emt 0:00:02]} Bxd1 {[%emt 0:00:06] KB-KPP} 59. b5 {[%emt 0:00:02]} Ba4 {[%emt 0:00:06]} 60. b6 {[%emt 0:00:04]} Bc6 {[%emt 0:00:03]} 61. Kg4 {[%emt 0:00:43]} Bb7 {[%emt 0:00:25]} 62. h4 {[%emt 0:00:55]} Bc8+ {[%emt 0:00:30]} 63. Kf3 {[%emt 0:00:08]} Kf5 {[%emt 0:00:06]} 64. h5 {[%emt 0:00:37]} Bb7+ {[%emt 0:00:04] Weighted Error Value: White=0.43/Black=0.16 (very precise)} 0-1